bitfinex/quotes_SOLUSD_20241223
["timestamp","ask_amount","ask_price","bid_price","bid_amount"]
[1734958336947,6.1435,184.85,184.76,12.64178098]
[1734958337658,0.81294136,184.84,184.75,12.64178098]
[1734958338340,0.81294136,184.84,184.76,0.81159567]
[1734958338659,6.95644136,184.85,184.76,0.81159567]
[1734958339861,6.1435,184.85,184.76,13.45337665]
[1734958340046,6.1435,184.85,184.77,12.64178098]
[1734958340250,6.1435,184.85,184.77,13.45327414]
[1734958341151,6.1435,184.85,184.77,12.64178098]
[1734958342035,0.81294136,184.84,184.76,32.64178098]
[1734958342530,6.1435,184.85,184.77,13.4533821]
[1734958342835,6.1435,184.85,184.78,12.64178098]
[1734958343735,6.1435,184.85,184.77,13.4533821]
[1734958343937,6.1435,184.85,184.78,12.64178098]
[1734958344233,6.1435,184.85,184.76,20.0]
[1734958344234,6.1435,184.85,184.8,12.64178098]
[1734958344441,1.6549,184.86,184.81,13.45318375]
[1734958344654,6.2723,184.9,184.82,12.64178098]
[1734958345941,6.2723,184.9,184.81,13.45310901]
[1734958346963,0.81294136,184.89,184.81,13.45310901]
[1734958347139,0.81294136,184.89,184.8,32.64178098]
[1734958347346,0.81294136,184.89,184.8,20.0]
[1734958348071,0.81294136,184.89,184.8,32.64178098]
[1734958348542,0.81294136,184.89,184.79,12.64178098]
[1734958348742,23.776884,184.88,184.78,12.64178098]
[1734958348939,0.81294136,184.87,184.77,13.45326458]
[1734958349444,0.81294136,184.87,184.77,0.8114836]
[1734958349740,23.776884,184.86,184.77,0.8114836]
[1734958350072,1.5045,184.84,184.75,12.64178098]
[1734958350241,1.5045,184.84,184.72,0.81165399]
[1734958350242,6.2723,184.82,184.73,12.64178098]
[1734958350438,0.81294136,184.81,184.73,12.64178098]
[1734958351847,6.2723,184.82,184.74,12.64178098]
[1734958352751,6.2723,184.82,184.76,12.64178098]
[1734958352951,6.2723,184.82,184.77,13.45332023]
[1734958353151,1.5045,184.84,184.81,12.64178098]
[1734958353355,6.2723,184.87,184.82,12.64178098]
[1734958356876,6.2723,184.87,184.81,12.64178098]
[1734958357079,1.5045,184.89,184.83,12.64178098]
[1734958357570,1.5045,184.89,184.82,13.45309944]
[1734958357777,1.5045,184.89,184.83,12.64178098]
[1734958357959,1.5045,184.89,184.84,0.81124996]
[1734958358370,6.0496,184.92,184.85,12.64178098]
[1734958358558,6.0496,184.92,184.84,0.81124996]
[1734958358559,6.0496,184.92,184.87,12.64178098]
[1734958359155,6.0496,184.92,184.88,0.81105363]
[1734958359680,1.6376,184.94,184.88,13.45283461]
[1734958359878,1.6376,184.94,184.89,12.64178098]
[1734958361355,1.6376,184.94,184.88,13.45278012]
[1734958361578,1.6376,184.94,184.88,0.81099914]
[1734958362077,1.6376,184.94,184.88,13.45278012]
[1734958362567,1.6376,184.94,184.89,12.64178098]
[1734958362883,6.0496,184.97,184.9,0.8110357]
[1734958364259,6.0496,184.97,184.9,13.45281668]
[1734958366989,2.2025741,185.02,184.94,12.64178098]
[1734958367162,2.2025741,185.02,184.95,0.81074374]
[1734958367862,3.01551546,185.02,184.94,12.64178098]
[1734958368063,3.01551546,185.02,184.91,13.45249636]
[1734958368278,23.776884,185.01,184.9,148.66040688]
[1734958368474,0.81294136,185.0,184.91,13.45276462]
[1734958369186,20.0,185.0,184.92,12.64178098]
[1734958369991,20.0,185.0,184.93,13.45264908]
[1734958370169,20.0,185.0,184.94,12.64178098]
[1734958373305,20.0,185.0,184.89,20.0]
[1734958373560,0.81294136,184.99,184.9,0.81096784]
[1734958373684,0.81294136,184.99,184.9,13.45274882]
[1734958374980,0.81294136,184.99,184.9,12.64178098]
[1734958376103,0.81294136,184.99,184.89,0.81099262]
[1734958376104,0.81294136,184.99,184.89,12.64178098]
[1734958376302,20.0,185.0,184.91,12.64178098]
[1734958376605,0.81294136,184.99,184.9,13.45285811]
[1734958377522,0.81294136,184.99,184.9,12.64178098]
[1734958377826,0.81294136,184.99,184.89,12.64178098]
[1734958378120,0.81294136,184.99,184.9,12.64178098]
[1734958378625,0.81294136,184.99,184.89,12.64178098]
[1734958378838,23.776884,184.98,184.88,12.64178098]
[1734958378988,0.81294136,184.97,184.88,12.64178098]
[1734958379515,0.81294136,184.97,184.89,12.64178098]
[1734958379714,0.81294136,184.97,184.85,0.81111767]
[1734958379715,0.81294136,184.97,184.9,12.64178098]
[1734958379919,0.81294136,184.99,184.89,12.64178098]
[1734958380723,0.81294136,184.99,184.92,12.64178098]
[1734958380934,2.2025741,185.02,184.96,12.64178098]
[1734958381094,2.2025741,185.02,184.97,13.45248897]
[1734958381301,0.6813741,185.02,184.97,13.45248897]
[1734958381516,0.6813741,185.02,184.98,12.64178098]
[1734958382414,0.6813741,185.02,184.99,12.64178098]
[1734958383524,0.6813741,185.02,184.98,12.64178098]
[1734958384118,0.6813741,185.02,184.96,12.64178098]
[1734958385921,0.6813741,185.02,184.93,12.64178098]
[1734958386316,0.81294136,185.01,184.93,12.64178098]
[1734958386628,6.283,185.0,184.91,12.64178098]
[1734958386828,20.0,184.97,184.89,12.64178098]
[1734958387622,1.5081,184.99,184.9,13.4528302]
[1734958387822,2.32104136,184.99,184.9,12.64178098]
[1734958388909,2.32104136,184.99,184.88,12.64178098]
[1734958389110,20.0,184.97,184.88,12.64178098]
[1734958389611,20.0,184.97,184.89,12.64178098]
[1734958389922,2.32104136,184.99,184.91,12.64178098]
[1734958390107,1.5081,184.99,184.96,12.64178098]
[1734958390310,0.6813741,185.02,184.96,12.64178098]
[1734958391423,0.6813741,185.02,184.97,13.45253786]
[1734958392314,0.6813741,185.02,184.97,12.64178098]
[1734958392512,1.49431546,185.02,184.85,149.5427259]
[1734958392717,23.776884,185.01,184.89,12.64178098]
[1734958392928,0.81294136,185.0,184.89,12.64178098]
[1734958393229,6.283,184.97,184.88,12.64178098]
[1734958393415,6.283,184.97,184.85,12.64178098]
[1734958393416,1.5081,184.95,184.85,12.64178098]
[1734958393620,0.81294136,184.94,184.85,12.64178098]
[1734958393815,0.81294136,184.94,184.86,12.64178098]
[1734958394714,20.81294136,184.94,184.86,12.64178098]
[1734958394906,20.81294136,184.94,184.85,12.64178098]
[1734958397210,20.81294136,184.94,184.86,12.64178098]
[1734958397738,20.81294136,184.94,184.85,12.64178098]
[1734958398142,20.81294136,184.94,184.84,12.64178098]
[1734958399518,20.0,184.9,184.83,12.64178098]
[1734958399724,0.81294136,184.89,184.82,12.64178098]
[1734958401013,20.0,184.9,184.82,12.64178098]
[1734958401343,20.0,184.91,184.8,20.0]
[1734958401534,0.81294136,184.9,184.83,12.64178098]
[1734958402145,0.81294136,184.9,184.82,12.64178098]
[1734958402452,0.81294136,184.9,184.83,12.64178098]
[1734958403225,0.81294136,184.9,184.82,12.64178098]
[1734958403739,1.6493,184.88,184.79,12.64178098]
[1734958404047,20.0,184.86,184.76,12.64178098]
[1734958404250,0.81294136,184.85,184.76,12.64178098]
[1734958404918,0.81294136,184.85,184.75,12.64178098]
[1734958405120,0.81294136,184.85,184.76,12.64178098]
[1734958406433,0.81294136,184.85,184.75,12.64178098]
[1734958407146,0.81294136,184.85,184.74,12.64178098]
[1734958407323,23.776884,184.84,184.74,12.64178098]
[1734958407524,0.81294136,184.83,184.73,12.64178098]
[1734958408429,24.58982536,184.85,184.73,12.64178098]
[1734958408627,20.0,184.82,184.73,12.64178098]
[1734958408943,0.81294136,184.81,184.73,12.64178098]
[1734958409134,20.0,184.82,184.73,12.64178098]
[1734958409334,0.81294136,184.81,184.73,12.64178098]
[1734958409552,20.0,184.86,184.74,12.64178098]
[1734958409553,20.0,184.82,184.74,12.64178098]
[1734958409722,0.81294136,184.81,184.74,12.64178098]
[1734958411352,0.81294136,184.81,184.7,2.44543514]
[1734958411353,0.81294136,184.81,184.73,12.64178098]
[1734958411856,20.0,184.77,184.69,0.81181007]
[1734958412035,0.81294136,184.76,184.66,0.81199206]
[1734958412355,0.81294136,184.76,184.65,12.64178098]
[1734958412651,0.81294136,184.76,184.66,12.64178098]
[1734958412849,23.776884,184.75,184.66,12.64178098]
[1734958413032,0.81294136,184.74,184.66,12.64178098]
[1734958413241,24.58982536,184.76,184.66,12.64178098]
[1734958413659,1.5742,184.72,184.65,12.64178098]
[1734958413844,2.38714136,184.72,184.65,12.64178098]
[1734958414756,1.5742,184.72,184.66,12.64178098]
[1734958415159,2.38714136,184.72,184.66,12.64178098]
[1734958415951,2.38714136,184.72,184.65,12.64178098]
[1734958416157,2.38714136,184.72,184.64,12.64178098]
[1734958417142,2.38714136,184.72,184.62,20.81212182]
[1734958417143,2.38714136,184.72,184.65,12.64178098]
[1734958417529,2.38714136,184.72,184.64,12.64178098]
[1734958418738,6.0836,184.71,184.63,12.64178098]
[1734958418941,0.81294136,184.7,184.6,12.64178098]
[1734958419642,20.0,184.68,184.6,12.64178098]
[1734958419841,0.81294136,184.67,184.6,12.64178098]
[1734958420041,0.81294136,184.67,184.59,12.64178098]
[1734958420241,0.81294136,184.67,184.6,12.64178098]
[1734958421156,0.81294136,184.67,184.61,12.64178098]
[1734958421338,0.81294136,184.7,184.64,12.64178098]
[1734958421534,0.81294136,184.7,184.63,12.64178098]
[1734958421734,20.0,184.68,184.6,12.64178098]
[1734958421960,0.81294136,184.67,184.6,12.64178098]
[1734958422261,0.81294136,184.67,184.59,12.64178098]
[1734958422974,0.81294136,184.67,184.57,12.64178098]
[1734958423147,20.0,184.63,184.54,12.64178098]
[1734958423354,0.81294136,184.62,184.54,12.64178098]
[1734958423667,6.86824136,184.62,184.53,12.64178098]
[1734958423858,6.86824136,184.62,184.54,12.64178098]
[1734958425980,1.5678,184.57,184.44,144.1799259]
[1734958426181,0.81294136,184.56,184.47,12.64178098]
[1734958426561,0.81294136,184.56,184.45,0.8128899]
[1734958426745,0.81294136,184.56,184.46,12.64178098]
[1734958427383,23.776884,184.55,184.45,12.64178098]
[1734958427560,0.81294136,184.54,184.44,12.64178098]
[1734958427765,0.81294136,184.54,184.45,12.64178098]
[1734958428892,7.6502,184.62,184.53,12.64178098]
[1734958429055,7.6502,184.62,184.57,12.64178098]
[1734958429243,7.6502,184.62,184.55,12.64178098]
[1734958429451,7.6502,184.62,184.54,12.64178098]
[1734958429652,0.81294136,184.61,184.54,12.64178098]
[1734958429849,0.81294136,184.61,184.53,12.64178098]
[1734958430274,0.81294136,184.61,184.53,20.31953174]
[1734958430878,20.0,184.59,184.53,20.31953174]
[1734958431093,20.0,184.59,184.52,20.31953174]
[1734958431291,20.0,184.59,184.53,20.31953174]
[1734958432291,20.0,184.59,184.5,0.8126804]
[1734958432493,20.0,184.59,184.51,20.31953174]
[1734958432989,20.0,184.59,184.52,20.31953174]
[1734958433497,20.0,184.59,184.51,20.31953174]
[1734958435779,20.0,184.59,184.5,21.13220223]
[1734958436284,20.0,184.59,184.51,20.31953174]
[1734958436495,20.0,184.59,184.51,21.13217303]
[1734958436659,0.81294136,184.58,184.48,20.0]
[1734958436859,0.81294136,184.58,184.49,0.81274169]
[1734958437187,0.81294136,184.58,184.49,21.13227343]
[1734958437815,20.0,184.59,184.49,21.13227343]
[1734958438112,20.0,184.59,184.5,20.31953174]
[1734958438276,20.0,184.59,184.51,21.13216609]
[1734958439112,20.0,184.59,184.51,0.81263435]
[1734958440707,20.0,184.59,184.5,0.8126631]
[1734958442411,20.0,184.59,184.5,21.13219484]
[1734958444006,20.0,184.59,184.5,0.8126631]
[1734958444205,20.0,184.59,184.49,0.81271124]
[1734958444500,20.0,184.59,184.5,20.31953174]
[1734958444799,7.6502,184.62,184.52,20.31953174]
[1734958444995,7.6502,184.62,184.53,0.81252547]
[1734958446105,0.81294136,184.61,184.5,40.31953174]
[1734958446299,0.81294136,184.61,184.51,0.81270137]
[1734958446604,7.6502,184.62,184.52,20.31953174]
[1734958446805,7.6502,184.62,184.53,0.81251323]
[1734958447605,7.6502,184.62,184.54,20.31953174]
[1734958447806,7.6502,184.62,184.55,0.81243493]
[1734958452309,0.81294136,184.61,184.52,136.0186259]
[1734958453001,0.81294136,184.61,184.5,20.0]
[1734958453203,0.81294136,184.61,184.5,20.81266273]
[1734958453382,20.0,184.59,184.5,0.81266273]
[1734958453584,0.81294136,184.58,184.5,0.81266273]
[1734958453783,20.0,184.59,184.5,0.81266273]
[1734958454808,0.81294136,184.58,184.5,0.81266273]
[1734958454989,20.0,184.59,184.5,0.81266273]
[1734958457497,0.81294136,184.58,184.47,0.81278565]
[1734958457694,6.1604,184.56,184.46,0.8128452]
[1734958457888,0.81294136,184.55,184.46,0.8128452]
[1734958458295,0.81294136,184.55,184.44,0.81293224]
[1734958459391,20.0,184.53,184.42,13.51195759]
[1734958459594,2.32784136,184.52,184.42,0.8129898]
[1734958459791,2.32784136,184.52,184.4,12.69896779]
[1734958460015,2.32784136,184.52,184.41,0.81315842]
[1734958460207,2.32784136,184.52,184.39,0.81312674]
[1734958460208,20.0,184.48,184.39,0.81312674]
[1734958460494,6.1604,184.47,184.39,0.81312674]
[1734958461291,20.0,184.43,184.37,0.6813741]
[1734958461493,2.45894136,184.42,184.37,0.6813741]
[1734958462213,23.776884,184.41,184.37,0.6813741]
[1734958462413,0.81294136,184.4,184.37,0.6813741]
[1734958464112,6.0512,184.39,184.37,0.6813741]
[1734958464319,0.81294136,184.38,184.37,0.6813741]
[1734958465116,20.0,184.35,184.25,0.8137691]
[1734958465296,20.0,184.35,184.26,12.69896779]
[1734958465620,20.0,184.36,184.27,0.81366962]
[1734958465790,0.81294136,184.35,184.27,0.81366962]
[1734958465995,1.3545,184.34,184.23,0.81377047]
[1734958466205,0.81294136,184.33,184.23,0.81377047]
[1734958466795,23.776884,184.32,184.21,0.81393102]
[1734958467000,0.81294136,184.31,184.21,0.81393102]
[1734958467620,6.4677,184.3,184.19,0.6813741]
[1734958467813,20.0,184.27,184.19,0.6813741]
[1734958468024,0.81294136,184.26,184.19,0.6813741]
[1734958469514,1.5782,184.25,184.19,0.6813741]
[1734958470010,20.0,184.27,184.2,0.81418448]
[1734958470211,8.0459,184.3,184.2,13.51315227]
[1734958471005,0.81294136,184.29,184.2,0.81418448]
[1734958471732,8.0459,184.3,184.2,0.81418448]
[1734958471914,0.81294136,184.29,184.2,0.81418448]
[1734958476340,20.0,184.27,184.19,0.6813741]
[1734958477926,8.85884136,184.3,184.19,14.19443994]
[1734958478441,8.85884136,184.3,184.19,1.49547215]
[1734958478949,0.81294136,184.29,184.19,1.49547215]
[1734958479239,8.0459,184.3,184.19,1.49547215]
[1734958479446,8.0459,184.3,184.19,14.19443994]
[1734958479744,8.0459,184.3,184.2,12.69896779]
[1734958480043,8.0459,184.3,184.19,14.19443994]
[1734958481340,8.0459,184.3,184.2,12.69896779]
[1734958481540,8.0459,184.3,184.21,0.81395246]
[1734958482945,2.44874136,184.35,184.22,12.69896779]
[1734958483150,2.44874136,184.35,184.23,0.81385859]
[1734958483440,2.44874136,184.35,184.23,13.51282638]
[1734958484031,0.81294136,184.35,184.24,12.69896779]
[1734958484235,0.81294136,184.36,184.25,0.81377306]
[1734958484862,0.81294136,184.37,184.25,0.81377306]
[1734958485765,20.0,184.35,184.25,0.81377306]
[1734958489252,20.0,184.35,184.25,13.51274085]
[1734958490457,20.0,184.35,184.25,0.81377306]
[1734958496039,20.0,184.35,184.26,14.24426779]
[1734958496345,20.0,184.35,184.27,13.51265859]
[1734958497052,20.0,184.35,184.27,0.8136908]
[1734958497967,6.09352095,184.38,184.27,0.8136908]
[1734958498149,20.0,184.35,184.27,0.8136908]
[1734958499940,0.81294136,184.34,184.26,1.5453]
[1734958500246,20.0,184.35,184.26,1.5453]
[1734958500765,0.81294136,184.34,184.26,1.5453]
[1734958501874,20.0,184.35,184.26,1.5453]
[1734958502163,20.0,184.35,184.27,0.81378699]
[1734958502464,15.45875047,184.39,184.28,12.69896779]
[1734958502676,1.6113,184.44,184.32,12.69896779]
[1734958502877,0.81294136,184.43,184.33,7.1742219]
[1734958503173,1.6113,184.44,184.33,7.1742219]
[1734958503174,0.81294136,184.44,184.34,1.6147]
[1734958503659,0.81294136,184.44,184.35,0.8133899]
[1734958503962,0.81294136,184.46,184.35,0.8133899]
[1734958505845,0.81294136,184.46,184.34,1.6147]
[1734958505846,23.776884,184.45,184.34,1.6147]
[1734958506044,0.81294136,184.44,184.34,1.6147]
[1734958506239,20.0,184.42,184.34,1.6147]
[1734958507140,3.63883518,184.46,184.36,12.69896779]
[1734958507459,0.81294136,184.49,184.38,12.69896779]
[1734958507662,0.81294136,184.49,184.39,13.51215222]
[1734958507851,0.81294136,184.5,184.39,13.51215222]
[1734958508158,0.81294136,184.5,184.39,0.81318443]
[1734958508568,0.81294136,184.51,184.4,20.26796779]
[1734958508792,0.81294136,184.51,184.41,0.81305911]
[1734958509565,0.81294136,184.52,184.41,0.81305911]
[1734958510159,20.0,184.5,184.41,0.81305911]
[1734958510682,0.81294136,184.56,184.43,12.69896779]
[1734958510886,0.81294136,184.56,184.44,13.51188292]
[1734958511083,0.81294136,184.56,184.44,0.81291513]
[1734958511267,0.81294136,184.56,184.42,0.81287392]
[1734958511465,8.09485326,184.56,184.41,136.0186259]
[1734958511664,7.2819119,184.55,184.4,7.569]
[1734958511996,0.81294136,184.54,184.4,7.569]
[1734958512166,23.776884,184.49,184.4,7.569]
[1734958512368,24.58982536,184.49,184.4,7.569]
[1734958513398,20.81294136,184.51,184.4,7.569]
[1734958513793,20.81294136,184.51,184.41,0.81312908]
[1734958514485,0.81294136,184.5,184.41,0.81312908]
[1734958514682,0.81294136,184.5,184.4,20.26796779]
[1734958516865,0.81294136,184.5,184.41,0.81311125]
[1734958518884,0.81294136,184.5,184.39,12.69896779]
[1734958519087,20.0,184.46,184.35,20.38216779]
[1734958519293,0.81294136,184.45,184.36,0.81332419]
[1734958520183,20.0,184.46,184.36,8.957487]
[1734958521600,20.0,184.46,184.37,8.14416281]
[1734958521794,20.0,184.46,184.38,0.81320165]
[1734958522586,7.8379,184.51,184.4,12.72312095]
[1734958522887,0.81294136,184.52,184.42,12.72312095]
[1734958523092,0.81294136,184.53,184.43,15.05695724]
[1734958523297,0.81294136,184.53,184.43,2.33383629]
[1734958524024,0.81294136,184.54,184.43,2.33383629]
[1734958524529,20.0,184.52,184.43,2.33383629]
[1734958524726,0.81294136,184.51,184.43,1.5208]
[1734958524913,0.81294136,184.51,184.38,14.32082095]
[1734958525115,43.776884,184.5,184.38,2.41089285]
[1734958525309,0.81294136,184.49,184.38,2.41089285]
[1734958525614,0.81294136,184.49,184.38,15.1340138]
[1734958527014,0.81294136,184.49,184.38,1.5977]
[1734958527211,23.776884,184.48,184.38,1.5977]
[1734958527413,20.0,184.45,184.36,0.81322475]
[1734958527611,0.81294136,184.44,184.36,0.81322475]
[1734958527926,23.776884,184.43,184.34,1.5961]
[1734958528137,0.81294136,184.42,184.34,1.5961]
[1734958528423,24.58982536,184.44,184.34,1.5961]
[1734958529006,20.0,184.44,184.35,13.53655534]
[1734958529321,20.0,184.44,184.36,12.72312095]
[1734958529521,20.0,184.44,184.37,13.53634917]
[1734958530311,20.0,184.44,184.37,0.81322822]
[1734958535032,2.32174136,184.5,184.37,13.53634917]
[1734958535214,2.32174136,184.5,184.39,36.50000495]
[1734958535412,6.5874,184.52,184.42,12.72312095]
[1734958535718,0.81294136,184.54,184.43,0.81298708]
[1734958536641,23.776884,184.53,184.41,0.81305718]
[1734958536934,0.81294136,184.52,184.41,0.81305718]
[1734958537723,20.0,184.5,184.41,0.81305718]
[1734958540240,0.81294136,184.52,184.41,0.81305718]
[1734958541225,23.776884,184.51,184.41,0.81305718]
[1734958541425,0.81294136,184.52,184.41,0.81305718]
[1734958541638,20.0,184.53,184.41,2.41585718]
[1734958541825,0.81294136,184.52,184.41,2.41585718]
[1734958542845,0.81294136,184.52,184.42,23.776884]
[1734958543043,20.0,184.53,184.43,0.81298194]
[1734958543244,0.81294136,184.52,184.43,0.81298194]
[1734958543823,20.0,184.53,184.43,0.81298194]
[1734958544227,0.81294136,184.52,184.43,0.81298194]
[1734958547936,23.776884,184.51,184.41,1.6028]
[1734958548147,0.81294136,184.5,184.41,1.6028]
[1734958548468,0.81294136,184.52,184.42,0.81311297]
[1734958549444,20.0,184.53,184.42,0.81311297]
[1734958549870,0.81294136,184.52,184.42,0.81311297]
[1734958550866,23.776884,184.51,184.41,1.6028]
[1734958551064,23.776884,184.47,184.41,1.6028]
[1734958551254,0.81294136,184.46,184.4,6.0962]
[1734958552049,0.81294136,184.46,184.37,2.34279666]
[1734958554448,8.51055363,184.53,184.41,8.14172348]
[1734958554653,8.51055363,184.53,184.42,8.95475073]
[1734958555275,0.81294136,184.52,184.42,8.95475073]
[1734958555676,20.0,184.5,184.42,8.95475073]
[1734958556054,0.81294136,184.53,184.44,8.14172348]
[1734958556254,0.81294136,184.56,184.45,13.52443904]
[1734958556959,0.81294136,184.58,184.45,0.81283174]
[1734958557164,3.02564435,184.58,184.45,23.776884]
[1734958557367,20.0,184.56,184.44,0.81291085]
[1734958557578,0.81294136,184.55,184.44,0.81291085]
[1734958558475,0.81294136,184.56,184.44,0.81291085]
[1734958558682,20.81294136,184.56,184.44,0.81291085]
[1734958559485,20.81294136,184.56,184.45,23.776884]
[1734958559664,20.81294136,184.56,184.46,0.81287148]
[1734958559978,20.0,184.56,184.46,0.81287148]
[1734958560798,0.81294136,184.55,184.46,0.81287148]
[1734958560975,0.81294136,184.55,184.44,0.81294009]
[1734958562898,20.0,184.51,184.43,1.5529]
[1734958563074,0.81294136,184.5,184.43,1.5529]
[1734958564378,20.81294136,184.5,184.43,1.5529]
[1734958565667,23.776884,184.49,184.43,1.5529]
[1734958565865,20.0,184.46,184.39,8.0592]
[1734958566380,0.81294136,184.48,184.39,8.0592]
[1734958567489,0.81294136,184.49,184.4,0.81318723]
[1734958568505,0.81294136,184.49,184.39,8.0592]
[1734958570329,20.0,184.45,184.39,8.0592]
[1734958570634,20.0,184.45,184.39,1.6125]
[1734958570635,0.81294136,184.44,184.39,1.6125]
[1734958571302,23.776884,184.43,184.35,6.6362]
[1734958571513,0.81294136,184.42,184.35,6.6362]
[1734958571723,23.776884,184.43,184.35,6.6362]
[1734958571925,0.81294136,184.42,184.35,6.6362]
[1734958572125,0.81294136,184.44,184.35,6.6362]
[1734958572423,0.81294136,184.44,184.36,0.81336474]
[1734958573495,20.0,184.45,184.36,0.81336474]
[1734958573702,20.0,184.45,184.36,13.52497204]
[1734958574007,0.81294136,184.48,184.37,12.7116073]
[1734958574216,0.81294136,184.48,184.38,0.81323582]
[1734958574430,0.81294136,184.48,184.36,0.81325748]
[1734958574593,0.81294136,184.48,184.35,142.6548259]
[1734958574933,0.81294136,184.5,184.35,142.6548259]
[1734958575102,23.776884,184.45,184.35,6.6362]
[1734958575402,0.81294136,184.45,184.36,0.81340164]
[1734958575602,20.0,184.46,184.36,0.81340164]
[1734958576325,0.81294136,184.45,184.36,0.81340164]
[1734958576835,20.0,184.46,184.36,0.81340164]
[1734958577230,0.81294136,184.45,184.36,0.81340164]
[1734958578829,23.776884,184.44,184.35,6.6362]
[1734958579133,20.0,184.41,184.35,6.6362]
[1734958580639,0.81294136,184.4,184.35,6.6362]
[1734958581916,20.0,184.41,184.35,6.6362]
[1734958582211,0.81294136,184.4,184.35,6.6362]
[1734958586338,0.81294136,184.4,184.34,1.6384]
[1734958586339,20.0,184.36,184.34,1.6384]
[1734958587043,20.0,184.36,184.3,1.6123]
[1734958587644,0.81294136,184.35,184.3,1.6123]
[1734958587942,20.0,184.36,184.3,1.6123]
[1734958591438,20.0,184.39,184.3,2.42600564]
[1734958591637,2.95077097,184.41,184.3,10.57512425]
[1734958591846,5.25046252,184.42,184.31,8.14911861]
[1734958592043,0.81294136,184.42,184.32,8.9625827]
[1734958592236,0.81294136,184.43,184.33,8.14911861]
[1734958592440,0.81294136,184.44,184.35,7.6346]
[1734958592946,2.94250804,184.46,184.35,7.6346]
[1734958593126,0.81294136,184.46,184.36,0.81335437]
[1734958593750,20.0,184.44,184.36,0.81335437]
[1734958594852,20.0,184.44,184.35,7.6346]
[1734958595926,20.0,184.44,184.35,8.44799149]
[1734958596853,20.0,184.44,184.35,7.6346]
[1734958597056,20.0,184.44,184.35,8.44798846]
[1734958598151,20.0,184.44,184.35,7.6346]
[1734958599378,20.0,184.44,184.36,0.81338847]
[1734958600185,0.81294136,184.43,184.35,7.6346]
[1734958600482,20.0,184.41,184.35,7.6346]
[1734958601574,0.81294136,184.4,184.35,7.6346]
[1734958601759,0.81294136,184.4,184.35,1.6167]
[1734958601961,0.81294136,184.4,184.31,6.4686]
[1734958602147,23.776884,184.39,184.31,6.4686]
[1734958602347,20.0,184.36,184.31,6.4686]
[1734958605764,0.81294136,184.35,184.31,6.4686]
[1734958606497,0.81294136,184.35,184.3,1.5876]
[1734958609578,20.81294136,184.36,184.3,1.5876]
[1734958611597,20.0,184.36,184.3,1.5876]
[1734958611771,0.81294136,184.35,184.3,1.5876]
[1734958614513,20.0,184.37,184.3,1.5876]
[1734958614680,0.81294136,184.36,184.3,1.5876]
[1734958616183,20.0,184.37,184.3,1.5876]
[1734958619984,20.0,184.37,184.3,2.40128035]
[1734958620315,9.32349499,184.44,184.33,8.14911861]
[1734958620521,13.75677462,184.45,184.35,1.5528]
[1734958621521,5.24622099,184.45,184.35,1.5528]
[1734958622232,20.0,184.42,184.35,1.5528]
[1734958622528,20.0,184.44,184.37,6.5767]
[1734958622817,0.81294136,184.46,184.38,0.81328324]
[1734958624112,20.0,184.44,184.38,0.81328324]
[1734958624714,20.0,184.44,184.37,7.38999787]
[1734958627715,20.0,184.44,184.37,6.5767]
[1734958628404,0.81294136,184.43,184.37,6.5767]
[1734958629435,20.0,184.39,184.35,1.5528]
[1734958629651,0.81294136,184.38,184.35,1.5528]
[1734958630102,0.81294136,184.38,184.32,6.3763]
[1734958631627,0.81294136,184.38,184.31,1.6372]
[1734958636022,20.81294136,184.38,184.31,1.6372]
[1734958636940,20.0,184.38,184.31,1.6372]
[1734958637144,20.0,184.38,184.31,2.45079143]
[1734958637350,20.0,184.4,184.32,6.6449]
[1734958637826,20.0,184.4,184.33,0.81351277]
[1734958642237,20.0,184.4,184.32,6.6449]
[1734958642429,0.81294136,184.39,184.32,6.6449]
[1734958642758,20.0,184.4,184.32,6.6449]
[1734958643053,0.81294136,184.39,184.32,6.6449]
[1734958643257,20.0,184.4,184.32,6.6449]
[1734958643745,0.81294136,184.39,184.32,6.6449]
[1734958652846,23.776884,184.38,184.32,6.6449]
[1734958653046,20.0,184.35,184.32,6.6449]
[1734958653249,0.81294136,184.39,184.32,6.6449]
[1734958654552,2.93824174,184.39,184.32,6.6449]
[1734958655875,0.76579774,184.39,184.32,6.6449]
[1734958656068,23.776884,184.39,184.32,6.6449]
[1734958656243,20.0,184.36,184.32,6.6449]
[1734958660457,20.0,184.39,184.32,6.6449]
[1734958661083,7.52621317,184.43,184.32,6.6449]